lending/lending_fUSD_20240621
["ID","MTS","AMOUNT","RATE_DAILY","PERIOD"]
[330108495,1718994643725,-500.0,0.00022191,4]
[330108496,1718994643734,-500.0,0.00022191,4]
[330108497,1718994643744,-299.59,0.00022191,4]
[330108498,1718994643755,-500.0,0.00022191,4]
[330108499,1718994643766,-500.0,0.00022191,4]
[330108500,1718994643776,-1043.18,0.00022191,4]
[330108501,1718994643790,-500.0,0.00022191,4]
[330108502,1718994643802,-277.21,0.00022191,4]
[330108503,1718994643812,-500.0,0.00022191,4]
[330108504,1718994643822,-500.0,0.00022191,4]
[330108505,1718994643832,-307.93,0.00022191,4]
[330108506,1718994643841,-500.0,0.00022191,4]
[330108507,1718994643852,-636.31,0.00022191,4]
[330108508,1718994643862,-500.0,0.00022191,4]
[330108509,1718994643873,-500.0,0.00022191,4]
[330108510,1718994643887,-500.0,0.00022191,4]
[330108511,1718994643896,-500.0,0.00022191,4]
[330108513,1718994643905,-500.0,0.00022191,4]
[330108515,1718994643914,-251.2,0.00022191,4]
[330108517,1718994643924,-500.0,0.00022191,4]
[330108518,1718994643933,-500.0,0.00022191,4]
[330108520,1718994643942,-500.0,0.00022191,4]
[330108522,1718994643952,-361.69,0.00022191,4]
[330108524,1718994643962,-500.0,0.00022191,4]
[330108526,1718994643972,-561.64,0.00022191,4]
[330108527,1718994643982,-530.56,0.00022191,4]
[330108528,1718994643991,-500.0,0.00022191,4]
[330108529,1718994644001,-500.0,0.00022191,4]
[330108530,1718994644010,-500.0,0.00022191,4]
[330108531,1718994644019,-500.0,0.00022191,4]
[330108532,1718994644029,-500.0,0.00022191,4]
[330108533,1718994644039,-500.0,0.00022191,4]
[330108534,1718994644048,-629.22,0.00022191,4]
[330108535,1718994644057,-296.5,0.00022191,4]
[330108536,1718994644066,-500.0,0.00022191,4]
[330108537,1718994644076,-189.37,0.00022191,4]
[330108538,1718994644085,-500.0,0.00022191,4]
[330108539,1718994644096,-500.0,0.00022191,4]
[330108540,1718994644105,-500.0,0.00022191,4]
[330108541,1718994644114,-500.0,0.00022191,4]
[330108542,1718994644124,-500.0,0.00022191,4]
[330108543,1718994644141,-500.0,0.00022191,4]
[330108544,1718994644151,-500.0,0.00022191,4]
[330108545,1718994644159,-500.0,0.00022191,8]
[330108546,1718994644168,-500.0,0.00022191,4]
[330108547,1718994644177,-500.0,0.00022191,4]
[330108548,1718994644187,-607.66,0.00022191,4]
[330108549,1718994644195,-110.70958481,0.00022191,4]
[330108550,1718994644214,-389.29041519,0.00022191,4]
[330108551,1718994644223,-575.33077044,0.00022191,4]
[330108552,1718994644232,-500.0,0.00022191,4]
[330108553,1718994644241,-303.79020338,0.00022191,4]
[330108554,1718994644250,-500.0,0.00022191,4]
[330108555,1718994644259,-500.0,0.00022191,4]
[330108556,1718994644269,-500.0,0.00022191,4]
[330108557,1718994644279,-500.0,0.00022191,4]
[330108558,1718994644288,-500.0,0.00022191,4]
[330108559,1718994644299,-500.0,0.00022191,4]
[330108560,1718994644308,-500.0,0.00022191,4]
[330108561,1718994644317,-500.0,0.00022191,4]
[330108562,1718994644327,-567.9,0.00022191,4]
[330108563,1718994644336,-500.0,0.00022191,4]
[330108564,1718994644346,-500.0,0.00022191,4]
[330108565,1718994644356,-500.0,0.00022191,4]
[330108566,1718994644365,-500.0,0.00022191,4]
[330108567,1718994644375,-500.0,0.00022191,4]
[330108568,1718994644393,-897.75,0.00022191,4]
[330108569,1718994644402,-500.0,0.00022191,4]
[330108570,1718994644411,-500.0,0.00022191,4]
[330108571,1718994644420,-185.56721851,0.00022191,4]
[330108572,1718994644432,-314.43278149,0.00022191,4]
[330108573,1718994644441,-455.53165004,0.00022191,4]
[330108574,1718994644451,-44.46834996,0.00022191,4]
[330108575,1718994644461,-500.0,0.00022191,4]
[330108576,1718994644470,-500.0,0.00022191,4]
[330108577,1718994644478,-500.0,0.00022191,4]
[330108578,1718994644488,-500.0,0.00022191,4]
[330108579,1718994644497,-500.0,0.00022191,4]
[330108580,1718994644507,-500.0,0.00022191,4]
[330108581,1718994644516,-500.0,0.00022191,4]
[330108582,1718994644525,-233.87180743,0.00022191,4]
[330108583,1718994644537,-266.12819257,0.00022191,4]
[330108584,1718994644546,-500.0,0.00022191,4]
[330108585,1718994644555,-703.22,0.00022191,4]
[330108586,1718994644564,-500.0,0.00022191,4]
[330108587,1718994644574,-500.0,0.00022191,4]
[330108588,1718994644583,-592.98,0.00022191,4]
[330108589,1718994644592,-500.0,0.00022191,4]
[330108590,1718994644601,-500.0,0.00022191,4]
[330108591,1718994644610,-500.0,0.00022191,4]
[330108592,1718994644619,-500.0,0.00022191,4]
[330108593,1718994644628,-500.0,0.00022191,4]
[330108594,1718994644638,-500.0,0.00022191,4]
[330108595,1718994644648,-500.0,0.00022191,4]
[330108596,1718994644657,-500.0,0.00022191,4]
[330108597,1718994644666,-500.0,0.00022191,4]
[330108598,1718994644675,-500.0,0.00022191,4]
[330108599,1718994644685,-500.0,0.00022191,4]
[330108600,1718994644694,-500.0,0.00022191,4]
[330108601,1718994644706,-530.29,0.00022191,4]
[330108602,1718994644718,-500.0,0.00022191,4]
[330108603,1718994644727,-500.0,0.00022191,4]
[330108604,1718994644737,-500.0,0.00022191,4]
[330108605,1718994644746,-500.0,0.00022191,4]
[330108606,1718994644756,-500.0,0.00022191,4]
[330108607,1718994644766,-500.0,0.00022191,4]
[330108608,1718994644775,-500.0,0.00022191,4]
[330108609,1718994644785,-380.18144522,0.00022191,4]
[330108610,1718994644800,-119.81855478,0.00022191,4]
[330108611,1718994644809,-500.0,0.00022191,4]
[330108612,1718994644819,-500.0,0.00022191,4]
[330108613,1718994644828,-500.0,0.00022191,4]
[330108614,1718994644838,-262.78192393,0.00022191,4]
[330108615,1718994644850,-237.21807607,0.00022191,4]
[330108616,1718994644859,-500.0,0.00022191,4]
[330108617,1718994644868,-500.0,0.00022191,4]
[330108618,1718994644877,-500.0,0.00022191,4]
[330108619,1718994644890,-500.0,0.00022191,4]
[330108620,1718994644899,-500.0,0.00022191,4]
[330108621,1718994644909,-500.0,0.00022191,4]
[330108622,1718994644918,-500.0,0.00022191,4]
[330108623,1718994644928,-500.0,0.00022191,4]
[330108624,1718994644938,-500.0,0.00022191,4]
[330108625,1718994644948,-500.0,0.00022191,4]
[330108626,1718994644957,-500.0,0.00022191,4]
[330108627,1718994644966,-500.0,0.00022191,4]
[330108628,1718994644976,-500.0,0.00022191,4]
[330108629,1718994644985,-500.0,0.00022191,4]
[330108630,1718994644994,-500.0,0.00022191,4]
[330108631,1718994645004,-500.0,0.00022191,4]
[330108632,1718994645013,-500.0,0.00022191,4]
[330108633,1718994645022,-500.0,0.00022191,4]
[330108634,1718994645031,-500.0,0.00022191,4]
[330108635,1718994645041,-221.82,0.00022191,7]
[330108636,1718994645050,-638.08,0.00022191,4]
[330108637,1718994645059,-500.0,0.00022191,4]
[330108638,1718994645068,-500.0,0.00022191,4]
[330108639,1718994645077,-531.45,0.00022191,4]
[330108640,1718994645087,-500.0,0.00022191,4]
[330108641,1718994645096,-683.18,0.00022191,4]
[330108642,1718994645105,-889.86,0.00022191,4]
[330108643,1718994645114,-500.0,0.00022191,4]
[330108644,1718994645124,-500.0,0.00022191,4]
[330108645,1718994645135,-500.0,0.00022191,4]
[330108646,1718994645143,-500.0,0.00022191,4]
[330108647,1718994645152,-500.0,0.00022191,4]
[330108648,1718994645160,-500.0,0.00022191,4]
[330108649,1718994645169,-1156.68,0.00022191,4]
[330108650,1718994645178,-516.76,0.00022191,4]
[330108651,1718994645187,-500.0,0.00022191,4]
[330108652,1718994645196,-500.0,0.00022191,4]
[330108653,1718994645206,-500.0,0.00022191,4]
[330108654,1718994645215,-500.0,0.00022191,4]
[330108655,1718994645224,-486.24,0.00022191,4]
[330108656,1718994645234,-659.15,0.00022191,4]
[330108657,1718994645243,-910.8,0.00022191,4]
[330108658,1718994645252,-1149.51,0.00022191,4]
[330108659,1718994645262,-500.0,0.00022191,4]
[330108660,1718994645271,-500.0,0.00022191,4]
[330108661,1718994645281,-585.11,0.00022191,4]
[330108662,1718994645290,-500.0,0.00022191,4]
[330108663,1718994645299,-500.0,0.00022191,4]
[330108664,1718994645308,-500.0,0.00022191,4]
[330108665,1718994645318,-500.0,0.00022191,4]
[330108666,1718994645327,-500.0,0.00022191,4]
[330108667,1718994645336,-500.0,0.00022191,4]
[330108668,1718994645346,-500.0,0.00022191,4]
[330108669,1718994645355,-500.0,0.00022191,4]
[330108670,1718994645365,-500.0,0.00022191,4]
[330108671,1718994645374,-500.0,0.00022191,4]
[330108672,1718994645386,-500.0,0.00022191,4]
[330108673,1718994645396,-500.0,0.00022191,4]
[330108674,1718994645405,-1860.05,0.00022191,4]
[330108675,1718994645414,-500.0,0.00022191,4]
[330108676,1718994645424,-500.0,0.00022191,4]
[330108677,1718994645433,-587.32,0.00022191,4]
[330108678,1718994645443,-500.0,0.00022191,4]
[330108679,1718994645452,-500.0,0.00022191,4]
[330108680,1718994645462,-544.17,0.00022191,4]
[330108681,1718994645472,-500.0,0.00022191,4]
[330108682,1718994645482,-500.0,0.00022191,4]
[330108683,1718994645491,-1514.55,0.00022191,4]
[330108684,1718994645501,-500.0,0.00022191,4]
[330108685,1718994645511,-500.0,0.00022191,4]
[330108686,1718994645521,-500.0,0.00022191,4]
[330108687,1718994645530,-500.0,0.00022191,4]
[330108688,1718994645540,-500.0,0.00022191,4]
[330108689,1718994645550,-500.0,0.00022191,4]
[330108690,1718994645560,-523.28,0.00022191,4]
[330108691,1718994645570,-500.0,0.00022191,4]
[330108692,1718994645579,-522.31,0.00022191,4]
[330108693,1718994645589,-500.0,0.00022191,4]
[330108694,1718994645599,-566.1,0.00022191,4]
[330108695,1718994645609,-570.26,0.00022191,4]
[330108696,1718994645618,-806.11,0.00022191,4]
[330108697,1718994645628,-562.59,0.00022191,4]
[330108698,1718994645643,-666.33,0.00022191,4]
[330108699,1718994645653,-608.44,0.00022191,4]
[330108700,1718994645662,-500.0,0.00022191,4]
[330108701,1718994645672,-500.0,0.00022191,4]
[330108702,1718994645681,-903.11,0.00022191,4]
[330108703,1718994645690,-500.0,0.00022191,4]
[330108704,1718994645700,-500.0,0.00022191,4]
[330108705,1718994645710,-500.0,0.00022191,4]
[330108706,1718994645724,-500.0,0.00022191,4]
[330108707,1718994645733,-500.0,0.00022191,4]
[330108708,1718994645743,-653.39,0.00022191,4]
[330108709,1718994645754,-940.06,0.00022191,4]
[330108710,1718994645764,-150.0,0.00022191,4]
[330108711,1718994645774,-500.0,0.00022191,4]
[330108712,1718994645783,-500.0,0.00022191,4]
[330108713,1718994645795,-570.83,0.00022191,4]
[330108714,1718994645805,-500.0,0.00022191,4]
[330108715,1718994645815,-500.0,0.00022191,4]
[330108716,1718994645824,-500.0,0.00022191,4]
[330108717,1718994645834,-500.0,0.00022191,4]
[330108718,1718994645843,-500.0,0.00022191,4]
[330108719,1718994645853,-500.0,0.00022191,4]
[330108720,1718994645862,-500.0,0.00022191,4]
[330108721,1718994645871,-500.0,0.00022191,4]
[330108722,1718994645883,-500.0,0.00022191,4]
[330108723,1718994645893,-500.0,0.00022191,4]
[330108724,1718994645903,-771.74,0.00022191,4]
[330108725,1718994645914,-500.0,0.00022191,4]
[330108726,1718994645923,-500.0,0.00022191,4]
[330108727,1718994645934,-500.0,0.00022191,4]
[330108728,1718994645943,-500.0,0.00022191,4]
[330108729,1718994645953,-500.0,0.00022191,4]
[330108730,1718994645964,-317.8611773,0.00022191,4]
[330108731,1718994645974,-590.1,0.00022191,4]
[330108732,1718994645984,-500.0,0.00022191,4]
[330108733,1718994645994,-714.09,0.00022191,4]
[330108734,1718994646005,-500.0,0.00022191,4]
[330108735,1718994646015,-1337.89,0.00022191,4]
[330108736,1718994646026,-500.0,0.00022191,4]
[330108737,1718994646036,-500.0,0.00022191,4]
[330108738,1718994646046,-500.0,0.00022191,4]
[330108739,1718994646056,-437.48,0.00022191,4]
[330108740,1718994646066,-500.0,0.00022191,4]
[330108741,1718994646078,-500.0,0.00022191,4]
[330108742,1718994646088,-500.0,0.00022191,4]
[330108743,1718994646097,-500.0,0.00022191,4]
[330108744,1718994646107,-500.0,0.00022191,4]
[330108745,1718994646118,-500.0,0.00022191,4]
[330108746,1718994646128,-500.0,0.00022191,7]
[330108747,1718994646139,-621.41,0.00022191,4]
[330108748,1718994646149,-500.0,0.00022191,4]
[330108749,1718994646158,-513.38,0.00022191,4]
[330108750,1718994646168,-500.0,0.00022191,4]
[330108751,1718994646178,-500.0,0.00022191,4]
[330108752,1718994646188,-500.0,0.00022191,4]
[330108753,1718994646200,-968.38,0.00022191,4]
[330108754,1718994646209,-500.0,0.00022191,4]
[330108755,1718994646220,-1142.09,0.00022191,4]
[330108756,1718994646229,-500.0,0.00022191,4]
[330108757,1718994646239,-500.0,0.00022191,4]
[330108758,1718994646249,-867.81,0.00022191,4]
[330108759,1718994646259,-500.0,0.00022191,4]
[330108760,1718994646268,-500.0,0.00022191,4]
[330108761,1718994646278,-500.0,0.00022191,4]
[330108762,1718994646288,-500.0,0.00022191,4]
[330108763,1718994646298,-500.0,0.00022191,4]
[330108764,1718994646307,-500.0,0.00022191,4]
[330108765,1718994646317,-500.0,0.00022191,4]
[330108766,1718994646327,-709.93,0.00022191,4]
[330108767,1718994646337,-500.0,0.00022191,4]
[330108768,1718994646347,-500.0,0.00022191,4]
[330108769,1718994646356,-656.27,0.00022191,4]
[330108770,1718994646366,-729.25,0.00022191,4]
[330108771,1718994646376,-664.59,0.00022191,4]
[330108772,1718994646388,-500.0,0.00022191,4]
[330108773,1718994646398,-500.0,0.00022191,4]
[330108774,1718994646407,-500.0,0.00022191,4]
[330108775,1718994646417,-500.0,0.00022191,4]
[330108776,1718994646427,-500.0,0.00022191,4]
[330108777,1718994646436,-564.24,0.00022191,4]
[330108778,1718994646446,-500.0,0.00022191,4]
[330108779,1718994646456,-730.6,0.00022191,4]
[330108780,1718994646465,-500.0,0.00022191,4]
[330108781,1718994646475,-500.0,0.00022191,4]
[330108782,1718994646485,-500.0,0.00022191,4]
[330108783,1718994646495,-500.0,0.00022191,4]
[330108784,1718994646504,-489.58393088,0.00022191,4]
[330108785,1718994646514,-500.0,0.00022191,4]
[330108786,1718994646524,-247.61,0.00022191,4]
[330108787,1718994646534,-500.0,0.00022191,4]
[330108788,1718994646544,-500.0,0.00022191,4]
[330108789,1718994646554,-500.0,0.00022191,4]
[330108790,1718994646563,-500.0,0.00022191,4]
[330108791,1718994646573,-500.0,0.00022191,4]
[330108792,1718994646584,-500.0,0.00022191,4]
[330108793,1718994646595,-642.35,0.00022191,4]
[330108794,1718994646605,-500.0,0.00022191,4]
[330108795,1718994646615,-500.0,0.00022191,4]
[330108796,1718994646625,-500.0,0.00022191,4]
[330108797,1718994646637,-500.0,0.00022191,4]
[330108798,1718994646647,-251.8,0.00022191,4]
[330108799,1718994646659,-786.51,0.00022191,4]
[330108800,1718994646669,-382.63,0.00022191,4]
[330108801,1718994646678,-500.0,0.00022191,4]
[330108802,1718994646688,-4825.99,0.00022191,4]
[330108803,1718994646697,-500.0,0.00022191,4]
[330108804,1718994646710,-500.0,0.00022191,4]
[330108805,1718994646721,-500.0,0.00022191,4]
[330108806,1718994646731,-500.0,0.00022191,4]
[330108807,1718994646741,-500.0,0.00022191,4]
[330108808,1718994646752,-500.0,0.00022191,4]
[330108809,1718994646762,-500.0,0.00022191,4]
[330108810,1718994646773,-2092.25,0.00022191,4]
[330108811,1718994646784,-500.0,0.00022191,4]
[330108812,1718994646795,-500.0,0.00022191,4]
[330108813,1718994646806,-896.25,0.00022191,4]
[330108814,1718994646816,-500.0,0.00022191,4]
[330108815,1718994646825,-500.0,0.00022191,4]
[330108816,1718994646835,-500.0,0.00022191,4]
[330108817,1718994646845,-1004.0,0.00022191,4]
[330108818,1718994646857,-1171.24,0.00022191,4]
[330108819,1718994646867,-500.0,0.00022191,4]
[330108820,1718994646878,-500.0,0.00022191,4]
[330108821,1718994646893,-500.0,0.00022191,4]
[330108822,1718994646902,-500.0,0.00022191,4]
[330108823,1718994646912,-500.0,0.00022191,4]
[330108824,1718994646922,-500.0,0.00022191,4]
[330108825,1718994646932,-500.0,0.00022191,4]
[330108826,1718994646941,-500.0,0.00022191,4]
[330108827,1718994646950,-500.0,0.00022191,4]
[330108828,1718994646959,-801.02,0.00022191,4]
[330108829,1718994646969,-1084.24,0.00022191,4]
[330108830,1718994646979,-1293.25,0.00022191,4]
[330108831,1718994646989,-680.43,0.00022191,4]
[330108832,1718994646999,-2543.64,0.00022191,4]
[330108833,1718994647009,-500.0,0.00022191,4]
[330108834,1718994647020,-638.6816583,0.00022191,4]
[330108835,1718994647030,-500.0,0.00022191,4]
[330108836,1718994647040,-500.0,0.00022191,4]
[330108837,1718994647049,-1632.9,0.00022191,4]
[330108838,1718994647059,-500.0,0.00022191,4]
[330108839,1718994647068,-1314.58,0.00022191,4]
[330108840,1718994647080,-500.0,0.00022191,4]
[330108841,1718994647089,-500.0,0.00022191,4]
[330108842,1718994647100,-500.0,0.00022191,4]
[330108843,1718994647110,-500.0,0.00022191,4]
[330108844,1718994647120,-500.0,0.00022191,4]
[330108845,1718994647130,-500.0,0.00022191,4]
[330108846,1718994647140,-500.0,0.00022191,4]
[330108847,1718994647149,-500.0,0.00022191,4]
[330108848,1718994647158,-718.56,0.00022191,4]
[330108849,1718994647168,-1749.96,0.00022191,4]
[330108850,1718994647178,-341.44,0.00022191,4]
[330108851,1718994647187,-500.0,0.00022191,4]
[330108852,1718994647199,-1350.88,0.00022191,4]
[330108853,1718994647209,-2796.0,0.00022191,4]
[330108854,1718994647220,-500.0,0.00022191,4]
[330108855,1718994647229,-765.93,0.00022191,4]
[330108856,1718994647239,-1861.53,0.00022191,4]
[330108857,1718994647248,-500.0,0.00022191,4]
[330108858,1718994647258,-1576.79,0.00022191,4]
[330108859,1718994647268,-500.0,0.00022191,4]
[330108860,1718994647278,-500.0,0.00022191,4]
[330108861,1718994647287,-549.19,0.00022191,4]
[330108862,1718994647297,-576.48,0.00022191,4]
[330108863,1718994647307,-1592.2,0.00022191,4]
[330108864,1718994647317,-1399.42,0.00022191,4]
[330108865,1718994647328,-713.22,0.00022191,4]
[330108866,1718994647338,-500.0,0.00022191,4]
[330108867,1718994647348,-1163.36,0.00022191,4]
[330108868,1718994647357,-1860.53,0.00022191,4]
[330108869,1718994647367,-23799.5,0.00022191,4]
[330108870,1718994647377,-2843.12,0.00022191,4]
[330108871,1718994647389,-493.93,0.00022191,4]
[330108872,1718994647399,-696.93,0.00022191,4]
[330108873,1718994647408,-855.47,0.00022191,4]
[330108874,1718994647418,-500.0,0.00022191,4]
[330108875,1718994647428,-522.98,0.00022191,4]
[330108876,1718994647437,-500.0,0.00022191,4]
[330108877,1718994647446,-500.0,0.00022191,4]
[330108878,1718994647456,-506.07,0.00022191,4]
[330108879,1718994647465,-2894.14,0.00022191,4]
[330108880,1718994647475,-500.0,0.00022191,4]
[330108881,1718994647484,-850.93,0.00022191,4]
[330108882,1718994647494,-500.0,0.00022191,4]
[330108883,1718994647503,-1404.81,0.00022191,4]
[330108884,1718994647512,-641.99,0.00022191,4]
[330108885,1718994647522,-5352.95,0.00022191,4]
[330108886,1718994647531,-1423.28,0.00022191,4]
[330108887,1718994647540,-763.88,0.00022191,4]
[330108888,1718994647550,-2138.89,0.00022191,4]
[330108889,1718994647561,-569.0,0.00022191,4]
[330108890,1718994647570,-500.0,0.00022191,4]
[330108891,1718994647580,-500.0,0.00022191,4]
[330108892,1718994647590,-4411.69,0.00022191,4]
[330108893,1718994647600,-1638.75,0.00022191,4]
[330108894,1718994647610,-1139.1,0.00022191,4]
[330108895,1718994647620,-500.0,0.00022191,4]
[330108896,1718994647629,-500.0,0.00022191,4]
[330108897,1718994647641,-4773.76,0.00022191,4]
[330108898,1718994647650,-500.0,0.00022191,4]
[330108899,1718994647660,-2790.61,0.00022191,4]
[330108900,1718994647670,-565.08,0.00022191,4]
[330108901,1718994647679,-500.0,0.00022191,4]
[330108902,1718994647688,-500.0,0.00022191,4]
[330108903,1718994647698,-500.0,0.00022191,4]
[330108904,1718994647708,-500.0,0.00022191,4]
[330108905,1718994647721,-500.0,0.00022191,4]
[330108906,1718994647731,-16899.55,0.00022191,4]
[330108907,1718994647741,-4282.0,0.00022191,4]
[330108908,1718994647750,-2013.12,0.00022191,4]
[330108909,1718994647761,-500.0,0.00022191,4]
[330108910,1718994647771,-500.0,0.00022191,4]
[330108911,1718994647780,-3549.33,0.00022191,4]
[330108912,1718994647790,-904.02,0.00022191,4]
[330108913,1718994647805,-3218.79,0.00022191,4]
[330108914,1718994647815,-2875.01,0.00022191,4]
[330108915,1718994647825,-500.0,0.00022191,4]
[330108916,1718994647835,-500.0,0.00022191,4]
[330108917,1718994647845,-500.0,0.00022191,4]
[330108918,1718994647855,-2902.84,0.00022191,4]
[330108919,1718994647864,-500.0,0.00022191,4]
[330108920,1718994647875,-780.75,0.00022191,4]
[330108921,1718994647886,-1791.53,0.00022191,4]
[330108922,1718994647897,-1411.87,0.00022191,4]
[330108923,1718994647907,-500.0,0.00022191,4]
[330108924,1718994647917,-500.0,0.00022191,4]
[330108925,1718994647928,-500.0,0.00022191,4]
[330108926,1718994648174,-500.0,0.00022191,4]
[330108927,1718994648186,-3002.99,0.00022191,4]
[330108928,1718994648196,-500.0,0.00022191,4]
[330108929,1718994648207,-500.0,0.00022191,4]
[330108930,1718994648218,-1384.08,0.00022191,4]
[330108931,1718994648227,-3005.48,0.00022191,4]
[330108932,1718994648236,-500.0,0.00022191,4]
[330108933,1718994648246,-500.0,0.00022191,4]
[330108934,1718994648255,-500.0,0.00022191,4]
[330108935,1718994648265,-500.0,0.00022191,4]
[330108936,1718994648275,-1186.06,0.00022191,4]
[330108937,1718994648285,-500.0,0.00022191,4]
[330108938,1718994648295,-500.0,0.00022191,4]
[330108939,1718994648305,-500.0,0.00022191,4]
[330108940,1718994648314,-1232.59,0.00022191,4]
[330108941,1718994648323,-500.0,0.00022191,4]
[330108942,1718994648333,-500.0,0.00022191,4]
[330108943,1718994648343,-500.0,0.00022191,4]
[330108944,1718994648352,-784.87,0.00022191,4]
[330108945,1718994648362,-500.0,0.00022191,4]
[330108946,1718994648373,-1251.38,0.00022191,4]
[330108947,1718994648384,-736.89,0.00022191,4]
[330108948,1718994648393,-1544.52,0.00022191,4]
[330108949,1718994648402,-500.0,0.00022191,4]
[330108950,1718994648412,-500.0,0.00022191,4]
[330108951,1718994648421,-3188.53,0.00022191,4]
[330108952,1718994648431,-976.47,0.00022191,4]
[330108953,1718994648440,-500.0,0.00022191,4]
[330108954,1718994648449,-500.0,0.00022191,4]
[330108955,1718994648458,-9643.68,0.00022191,4]
[330108956,1718994648467,-500.0,0.00022191,4]
[330108957,1718994648476,-500.0,0.00022191,4]
[330108958,1718994648486,-7938.82,0.00022191,4]
[330108959,1718994648496,-625.21,0.00022191,4]
[330108960,1718994648505,-1984.59,0.00022191,4]
[330108961,1718994648515,-1829.21,0.00022191,4]
[330108962,1718994648524,-386.3,0.00022191,4]
[330108963,1718994648534,-1495.33,0.00022191,4]
[330108964,1718994648544,-534.17,0.00022191,4]
[330108965,1718994648553,-2213.03,0.00022191,4]
[330108966,1718994648562,-500.0,0.00022191,4]
[330108967,1718994648571,-4281.91,0.00022191,4]
[330108968,1718994648581,-744.32,0.00022191,4]
[330108969,1718994648590,-1781.59,0.00022191,4]
[330108970,1718994648599,-728.88,0.00022191,4]
[330108971,1718994648608,-659.0,0.00022191,4]
[330108972,1718994648617,-4995.42,0.00022191,4]
[330108973,1718994648627,-500.0,0.00022191,4]
[330108974,1718994648636,-500.0,0.00022191,4]
[330108975,1718994648645,-500.0,0.00022191,4]
[330108976,1718994648654,-1435.08,0.00022191,4]
[330108977,1718994648664,-2360.25,0.00022191,4]
[330108978,1718994648673,-552.25,0.00022191,4]
[330108979,1718994648683,-500.0,0.00022191,4]
[330108980,1718994648692,-3124.7,0.00022191,4]
[330108981,1718994648701,-500.0,0.00022191,4]
[330108982,1718994648715,-6875.73,0.00022191,4]
[330108983,1718994648724,-2825.01,0.00022191,4]
[330108984,1718994648734,-500.0,0.00022191,4]
[330108985,1718994648743,-500.0,0.00022191,4]
[330108986,1718994648754,-397.88,0.00022191,4]
[330108987,1718994648763,-728.52,0.00022191,4]
[330108988,1718994648775,-872.48,0.00022191,4]
[330108989,1718994648784,-500.0,0.00022191,4]
[330108990,1718994648794,-1182.31,0.00022191,4]
[330108991,1718994648805,-831.42,0.00022191,4]
[330108992,1718994648815,-500.0,0.00022191,4]
[330108993,1718994648824,-1544.88,0.00022191,4]
[330108994,1718994648833,-500.0,0.00022191,4]
[330108995,1718994648842,-500.0,0.00022191,4]
[330108996,1718994648852,-1057.95,0.00022191,4]
[330108997,1718994648861,-500.0,0.00022191,4]
[330108998,1718994648870,-3776.39,0.00022191,4]
[330108999,1718994648880,-1404.94,0.00022191,4]
[330109000,1718994648890,-500.0,0.00022191,4]
[330109001,1718994648900,-250.0,0.00022191,4]